fUSD/lending_fUSD_20260202
["ID","MTS","AMOUNT","RATE_DAILY","PERIOD"]
[404296852,1770043844141,-163.0,0.0001704,2]
[404296853,1770043844152,-839.0,0.0001704,2]
[404296854,1770043844161,-839.0,0.0001704,2]
[404296855,1770043844170,-839.0,0.0001704,2]
[404296856,1770043844179,-578.20924308,0.00017099,2]
[404296857,1770043844188,-209.40437684,0.00017099,2]
[404296858,1770043844198,-250.0,0.00017099,2]
[404296859,1770043844207,-721.12765535,0.00017099,2]
[404296860,1770043844216,-250.0,0.00017099,2]
[404296861,1770043844227,-250.0,0.00017099,2]
[404296862,1770043844237,-250.0,0.00017099,2]
[404296863,1770043844246,-249.0234262,0.00017099,2]
[404296864,1770043844255,-250.0,0.00017099,2]
[404296865,1770043844264,-250.0,0.00017099,2]
[404296866,1770043844273,-250.0,0.00017099,2]
[404296867,1770043844283,-250.0,0.00017099,2]
[404296868,1770043844292,-250.0,0.00017099,2]
[404296869,1770043844301,-250.0,0.00017099,2]
[404296870,1770043844310,-250.0,0.00017099,2]
[404296871,1770043844319,-166.20200611,0.00017099,2]
[404296872,1770043844329,-500.0,0.00017099,2]
[404296873,1770043844338,-500.0,0.00017099,2]
[404296874,1770043844347,-500.0,0.00017099,2]
[404296875,1770043844356,-500.0,0.00017099,2]
[404296876,1770043844365,-500.0,0.00017099,2]
[404296877,1770043844374,-500.0,0.00017099,2]
[404296878,1770043844384,-1428.38747117,0.00017099,2]
[404296879,1770043844394,-209.40437684,0.00017099,2]
[404296880,1770043844403,-500.0,0.00017099,2]
[404296881,1770043844412,-500.0,0.00017099,2]
[404296882,1770043844422,-500.0,0.00017099,2]
[404296883,1770043844431,-500.0,0.00017099,2]
[404296884,1770043844440,-500.0,0.00017099,2]
[404296885,1770043844449,-174.61919141,0.00017099,2]
[404296886,1770043844458,-250.0,0.00017099,2]
[404296887,1770043844468,-317.3738203,0.00017099,2]
[404296888,1770043844489,-322.6107,0.00017099,2]
[404296889,1770043844501,-250.0,0.00017099,2]
[404296890,1770043844510,-250.0,0.00017099,2]
[404296891,1770043844520,-250.0,0.00017099,2]
[404296892,1770043844529,-859.80605061,0.00017099,2]
[404296893,1770043844539,-250.0,0.00017099,2]
[404296894,1770043844549,-209.40437684,0.00017099,2]
[404296895,1770043844558,-250.0,0.00017099,2]
[404296896,1770043844568,-1761.11407335,0.00017116,2]
[404296897,1770043844577,-2000.0,0.00017116,2]
[404296898,1770043844587,-2000.0,0.00017116,2]
[404296899,1770043844596,-2000.0,0.00017116,2]
[404296900,1770043844605,-503.56470175,0.00017116,2]
[404296901,1770043844615,-1003.30357537,0.00017116,2]
[404296902,1770043844624,-217.15233878,0.00017154,2]
[404296903,1770043844634,-166.66,0.00017168,2]
[404296904,1770043844644,-19224.23580444,0.0001719,2]
[404296905,1770043844653,-2425.26986082,0.0001719,2]
[404296906,1770043844662,-196.73,0.00017191,2]
[404296907,1770043844671,-306.5,0.00017207,2]
[404296908,1770043844681,-160.03,0.00017207,2]
[404296909,1770043844689,-150.0,0.00017207,2]
[404296910,1770043844698,-1137.91,0.00017207,2]
[404296911,1770043844707,-150.0,0.00017207,2]
[404296912,1770043844716,-150.0,0.00017207,2]
[404296913,1770043844728,-359.09,0.00017207,2]
[404296914,1770043844737,-150.0,0.00017207,2]
[404296915,1770043844747,-150.0,0.00017207,2]
[404296916,1770043844756,-150.0,0.00017207,2]
[404296917,1770043844766,-225.18697532,0.00017209,2]
[404296918,1770043844775,-1000.0,0.0001726,2]
[404296919,1770043844784,-233.51889341,0.00017264,2]
[404296920,1770043844794,-168.67,0.0001731,2]
[404296921,1770043844803,-242.15909246,0.00017319,2]
[404296922,1770043844813,-251.11897888,0.00017374,2]
[404296923,1770043844822,-260.4103811,0.00017429,2]
[404296924,1770043844832,-270.0455652,0.00017484,2]
[404296925,1770043844841,-159.65843549,0.0001749,2]
[404296926,1770043844850,-1000.0,0.00017534,2]
[404296927,1770043844859,-280.03725112,0.00017539,2]
[404296928,1770043844868,-5888.0,0.00017566,2]
[404296929,1770043844878,-6961.53879567,0.00017568,2]
[404296930,1770043844887,-9419.2065,0.00017568,2]
[404296931,1770043844897,-450.0,0.00017568,2]
[404296932,1770043844906,-290.39862941,0.00017594,2]
[404296933,1770043844915,-274.75743456,0.00017604,2]
[404296934,1770043844924,-1918.94815528,0.0001764,2]
[404296935,1770043844933,-217.15233878,0.00017647,2]
[404296936,1770043844943,-1481.23780761,0.00017647,2]
[404296937,1770043844952,-217.15233878,0.00017647,2]
[404296938,1770043844961,-181.08010149,0.00017647,2]
[404296939,1770043844973,-891.61887448,0.00017647,2]
[404296940,1770043844983,-301.1433787,0.00017649,2]
[404296941,1770043844992,-1932.69026087,0.00017664,2]
[404296942,1770043845002,-2250.14829239,0.00017664,2]
[404296943,1770043845011,-2500.0,0.00017664,2]
[404296944,1770043845020,-163.0,0.0001768,2]
[404296945,1770043845029,-150.0,0.00017698,2]
[404296946,1770043845038,-226.74400397,0.00017698,2]
[404296947,1770043845048,-4179.0,0.00017698,2]
[404296948,1770043845058,-150.0,0.00017698,2]
[404296949,1770043845068,-410.9,0.000177,2]
[404296950,1770043845083,-196.73,0.0001774,2]
[404296951,1770043845093,-381.0,0.0001774,2]
[404296952,1770043845102,-150.0,0.00017753,2]
[404296953,1770043845112,-4179.0,0.00017753,2]
[404296954,1770043845121,-150.0,0.00017753,2]
[404296955,1770043845130,-150.0,0.00017808,2]
[404296956,1770043845139,-4179.0,0.00017808,2]
[404296957,1770043845150,-150.0,0.00017808,2]
[404296958,1770043845159,-381.0,0.00017808,2]
[404296959,1770043845168,-500.0,0.00017808,2]
[404296960,1770043845177,-1000.0,0.00017808,2]
[404296961,1770043845186,-5888.0,0.00017814,2]
[404296962,1770043845195,-381.0,0.00017818,2]
[404296963,1770043845205,-3764.4246687,0.0001782,10]
[404296964,1770043845215,-381.0,0.00017829,2]
[404296965,1770043845225,-381.0,0.0001783,2]
[404296966,1770043845234,-381.0,0.00017841,2]
[404296967,1770043845244,-381.0,0.00017848,2]
[404296968,1770043845254,-381.0,0.00017852,2]
[404296969,1770043845264,-200.0,0.00017856,2]
[404296970,1770043845273,-381.0,0.00017859,2]
[404296971,1770043845284,-150.0,0.00017862,2]
[404296972,1770043845293,-4179.0,0.00017862,2]
[404296973,1770043845303,-150.0,0.00017862,2]
[404296974,1770043845312,-500.0,0.00017863,2]
[404296975,1770043845321,-268.0,0.00017863,2]
[404296976,1770043845331,-1000.0,0.00017865,2]
[404296977,1770043845340,-886.486,0.00017865,2]
[404296978,1770043845350,-381.0,0.00017866,2]
[404296979,1770043845360,-381.0,0.0001787,2]
[404296980,1770043845369,-10139.4576,0.000179,2]
[404296981,1770043845378,-627.61337016,0.000179,2]
[404296982,1770043845387,-19224.23580444,0.000179,2]
[404296983,1770043845397,-2425.26986082,0.000179,2]
[404296984,1770043845406,-12248.0,0.000179,2]
[404296985,1770043845416,-150.0,0.00017917,2]
[404296986,1770043845425,-4179.0,0.00017917,2]
[404296987,1770043845435,-150.0,0.00017917,2]
[404296988,1770043845445,-500.0,0.00017918,2]
[404296989,1770043845455,-324.74128292,0.00017922,2]
[404296990,1770043845464,-381.0,0.00017924,2]
[404296991,1770043845477,-5888.0,0.00017929,2]
[404296992,1770043845486,-381.0,0.00017937,2]
[404296993,1770043845496,-381.0,0.00017937,2]
[404296994,1770043845505,-5800.0,0.00017941,2]
[404296995,1770043845514,-5800.0,0.00017949,2]
[404296996,1770043845523,-5800.0,0.00017958,2]
[404296997,1770043845533,-456.738324,0.00017965,2]
[404296998,1770043845542,-5800.0,0.00017966,2]
[404296999,1770043845551,-600.0,0.0001797,2]
[404297001,1770043845560,-1000.0,0.0001797,2]
[404297002,1770043845570,-1000.0,0.0001797,2]
[404297003,1770043845579,-1000.0,0.0001797,2]
[404297004,1770043845588,-1000.0,0.0001797,2]
[404297005,1770043845597,-1050.00094472,0.0001797,2]
[404297006,1770043845607,-250.0,0.00017972,2]
[404297007,1770043845615,-4179.0,0.00017972,2]
[404297008,1770043845625,-250.0,0.00017972,2]
[404297009,1770043845634,-546.08935447,0.00017972,2]
[404297010,1770043845643,-5800.0,0.00017975,2]
[404297011,1770043845652,-5800.0,0.00017983,2]
[404297012,1770043845661,-386.0,0.00017986,2]
[404297013,1770043845670,-165.21031003,0.0001799,2]
[404297015,1770043845680,-5800.0,0.00017992,2]
[404297016,1770043845689,-69339.1605184,0.00017996,2]
[404297017,1770043845698,-40503.928797,0.00017996,2]
[404297018,1770043845708,-15154.6945938,0.00017996,2]
[404297019,1770043845717,-1178.1740899,0.00017996,2]
[404297020,1770043845728,-201754.5385305,0.00017996,2]
[404297021,1770043845738,-100813.6441665,0.00017996,2]
[404297022,1770043845747,-300.0,0.00017999,2]
[404297024,1770043845757,-1010.3175,0.00017999,2]
[404297025,1770043845766,-300.0,0.00017999,2]
[404297026,1770043845775,-300.0,0.00017999,2]
[404297027,1770043845784,-180.0,0.00017999,2]
[404297028,1770043845793,-300.0,0.00017999,2]
[404297029,1770043845802,-300.0,0.00017999,2]
[404297030,1770043845812,-300.0,0.00017999,2]
[404297031,1770043845821,-300.0,0.00017999,2]
[404297032,1770043845831,-300.0,0.00017999,2]
[404297033,1770043845840,-3156667.75002288,0.00018,2]
[404297035,1770043846300,-697.06939962,0.00018,2]
[404297039,1770043846631,-847.72881486,0.00018,2]
[404297040,1770043846642,-7860.0,0.00018,2]
[404297041,1770043846652,-2551.99999999,0.00018,2]
[404297042,1770043846747,-563.63427931,0.00012527,2]
[404297043,1770043846759,-311.28919994,0.00012527,2]
[404297044,1770043846773,-584.07652075,0.00012527,2]
[404297045,1770043846782,-21706.41293615,0.00018,2]
[404297046,1770043846793,-5809.31580057,0.00018,2]
[404297047,1770043846803,-946009.8494652,0.00018,2]
[404297048,1770043846873,-1310.0,0.00012552,2]
[404297049,1770043846882,-289.9309531,0.00018,2]
[404297050,1770043846892,-375.057,0.00018,2]
[404297051,1770043846931,-15770.24238579,0.00018,2]
[404297052,1770043846942,-535.17343353,0.00018,2]
[404297054,1770043859636,-500.0,0.00011407,2]
[404297057,1770043875392,500.0,0.00011407,2]
[404297060,1770043881190,10000.01,0.00011407,2]
[404297061,1770043881337,-8268.67,0.00011407,2]
[404297062,1770043881497,-10000.01,0.00011407,2]
[404297063,1770043881621,-4168.5315,0.00011407,2]
[404297064,1770043903715,10000.01,0.00011407,2]
[404297065,1770043903743,10000.01,0.00011407,2]
[404297066,1770043903771,10000.01,0.00011407,2]
[404297067,1770043903806,10000.01,0.00011407,2]
[404297068,1770043903835,10000.01,0.00011407,2]
[404297069,1770043903862,10000.01,0.00011407,2]
[404297070,1770043903889,10000.01,0.00011407,2]
[404297188,1770044192983,-150.0,0.00011306,2]
[404297189,1770044193023,-300.0,0.00011306,2]
[404297190,1770044193056,-300.0,0.00011306,2]
[404297191,1770044193421,-1200.0,0.00011306,2]
[404297192,1770044193452,-2338.4676186,0.00011307,2]
[404297230,1770044217020,-1423.0747628,0.00011307,2]
[404297237,1770044220032,-10000.01,0.00011307,2]
[404297245,1770044232121,-300.0,0.00011306,2]
[404297246,1770044232148,-250.0,0.00011307,2]
[404297247,1770044232205,-8900.01,0.00011307,2]
[404297255,1770044298907,-178.0,0.00011193,2]
[404297259,1770044344398,-500.0,0.00011206,2]
[404297260,1770044435380,-199.09119073,0.00011207,2]
[404297261,1770044460804,6429.14,0.00010833,2]
[404297262,1770044461647,-300.0,0.00011306,2]
[404297263,1770044490897,179.8228,0.00011206,2]
[404297264,1770044511145,-3391.0472,0.00011233,2]
[404297265,1770044511335,-788.4572,0.00011233,2]
[404297266,1770044511358,-8423.0956,0.00011233,2]
[404297267,1770044512491,10000.01,0.00011207,2]
[404297268,1770044512520,10000.01,0.00011207,2]
[404297269,1770044512548,10000.01,0.00011207,2]
[404297270,1770044512576,10000.01,0.00011207,2]
[404297271,1770044512605,10000.01,0.00011207,2]
[404297272,1770044513247,-854.85880908,0.00011207,2]
[404297273,1770044518773,-1061.64190853,0.00011207,2]
[404297274,1770044520558,-306.04439693,0.00011207,2]
[404297275,1770044520602,-10000.01,0.00011207,2]
[404297276,1770044520691,-10000.01,0.00011207,2]
[404297277,1770044520806,-10000.01,0.00011207,2]
[404297278,1770044524067,-426.50727471,0.00011207,2]
[404297279,1770044526774,-252.76591589,0.00011207,2]
[404297280,1770044528553,-500.00000017,0.00011207,2]
[404297281,1770044530826,-1911.74535456,0.00011207,2]
[404297282,1770044534811,-173.49272529,0.00011207,2]
[404297283,1770044536464,-208.89990376,0.00011207,2]
[404297284,1770044540149,-577.1821567,0.00011207,2]
[404297285,1770044542870,-2685.8321676,0.00011207,2]
[404297286,1770044545146,-429.11018208,0.00011207,2]
[404297287,1770044548165,5352.415326,0.00011151,2]
[404297288,1770044551826,-202.00140077,0.00011207,2]
[404297289,1770044554079,-990.72666353,0.00011207,2]
[404297290,1770044558895,-690.28032245,0.00011207,2]
[404297291,1770044560954,-161.0,0.00011207,2]
[404297292,1770044561224,255.21238431,0.00011206,2]
[404297293,1770044561264,500.0,0.00011206,2]
[404297294,1770044561306,266.52220793,0.00011206,2]
[404297295,1770044561662,601.25050871,0.00011206,2]
[404297296,1770044561807,500.0,0.00011206,2]
[404297297,1770044564197,362.54018819,0.00011206,2]
[404297298,1770044566599,-322.28350113,0.00011207,2]
[404297299,1770044567027,500.0,0.00011206,2]
[404297300,1770044567090,614.73792847,0.00011206,2]
[404297301,1770044567145,500.0,0.00011206,2]
[404297302,1770044567198,500.0,0.00011206,2]
[404297303,1770044570824,-431.94414854,0.00011207,2]
[404297304,1770044574935,-417.72240687,0.00011207,2]
[404297305,1770044582811,47.33145639,0.00011206,2]
[404297306,1770044582834,102.66854361,0.00011206,2]
[404297307,1770044583793,300.0,0.00011206,2]
[404297308,1770044598013,810.35299231,0.00011206,2]
[404297309,1770044598385,810.35299231,0.00011206,2]
[404297310,1770044603177,7976.63547177,0.00010881,2]
[404297311,1770044603200,10000.01,0.00010881,2]
[404297312,1770044603224,7251.59452823,0.00010881,2]
[404297313,1770044607706,644.0,0.00011206,2]
[404297315,1770044636892,336.65548929,0.00011156,2]
[404297317,1770044652812,462.2217,0.00011207,2]
[404297318,1770044702251,1200.0,0.00011206,2]
[404297323,1770044705309,105.53828248,0.00010833,2]
[404297324,1770044705336,4894.47171752,0.00010833,2]
[404297325,1770044716866,417.72240687,0.00011156,2]
[404297326,1770044717583,500.34235794,0.00022,120]
[404297327,1770044720036,500.0,0.0001118,2]
[404297328,1770044720788,150.0,0.0001118,2]
[404297329,1770044723864,3559.78277325,0.00011132,2]
[404297330,1770044737522,478.03310236,0.00011206,2]
[404297331,1770044737550,21.96689764,0.00011206,2]
[404297332,1770044742475,631.03533926,0.00011132,2]
[404297333,1770044744209,607.76474425,0.00011132,2]
[404297334,1770044747457,607.76474425,0.00011132,2]
[404297335,1770044757065,224.43699286,0.00011132,2]
[404297336,1770044759536,500.0,0.00010833,2]
[404297337,1770044763014,300.0,0.00011206,2]
[404297338,1770044763834,150.0,0.00011206,2]
[404297339,1770044764558,282.0,0.00011206,2]
[404297340,1770044764783,948.90299507,0.00011197,2]
[404297341,1770044769073,500.0,0.00011206,2]
[404297343,1770044788943,166.67,0.00011158,2]
[404297344,1770044789813,526.5446,0.00011107,2]
[404297345,1770044800513,500.0,0.00011206,2]
[404297346,1770044807151,156.27756316,0.00022,120]
[404297347,1770044830026,200.0,0.00011207,2]
[404297348,1770044831831,500.0,0.00011206,2]
[404297356,1770044832839,500.0,0.00011207,2]
[404297357,1770044833355,500.0,0.00011207,2]
[404297358,1770044833691,500.0,0.00011207,2]
[404297359,1770044834307,500.0,0.00011207,2]
[404297360,1770044834981,500.0,0.00011207,2]
[404297361,1770044835793,500.0,0.00011207,2]
[404297362,1770044836616,332.92368667,0.00011207,2]
[404297363,1770044836640,167.07631333,0.00011207,2]
[404297364,1770044837118,500.0,0.00011207,2]
[404297365,1770044837748,500.0,0.00011207,2]
[404297366,1770044838558,500.0,0.00011207,2]
[404297367,1770044839424,500.0,0.00011207,2]
[404297368,1770044839560,-5000.01,0.00011207,2]
[404297369,1770044839704,-5000.01,0.00011207,2]
[404297370,1770044839820,500.0,0.00011207,2]
[404297371,1770044839866,-5000.01,0.00011207,2]
[404297372,1770044840003,-5000.01,0.00011207,2]
[404297373,1770044840234,-5000.01,0.00011207,2]
[404297374,1770044840303,-5000.01,0.00011207,2]
[404297375,1770044840423,-5000.01,0.00011207,2]
[404297376,1770044840561,-5000.01,0.00011207,2]
[404297377,1770044840677,-5000.01,0.00011207,2]
[404297378,1770044840789,-5000.01,0.00011207,2]
[404297379,1770044841766,151.0,0.00011207,2]
[404297380,1770044842013,200.0,0.00011207,2]
[404297381,1770044842355,151.0,0.00011207,2]
[404297382,1770044842968,151.0,0.00011207,2]
[404297383,1770044843564,151.0,0.00011207,2]
[404297384,1770044844185,151.0,0.00011207,2]
[404297385,1770044844844,151.0,0.00011207,2]
[404297386,1770044845466,151.0,0.00011207,2]
[404297387,1770044846253,151.0,0.00011207,2]
[404297388,1770044846873,151.0,0.00011207,2]
[404297389,1770044846976,500.0,0.00011207,2]
[404297393,1770044847641,151.0,0.00011207,2]
[404297394,1770044847679,500.0,0.00011207,2]
[404297395,1770044848268,151.0,0.00011207,2]
[404297396,1770044848314,500.0,0.00011207,2]
[404297397,1770044848875,151.0,0.00011207,2]
[404297398,1770044848982,500.0,0.00011207,2]
[404297399,1770044849705,151.0,0.00011207,2]
[404297400,1770044849766,500.0,0.00011207,2]
[404297402,1770044850114,151.0,0.00011207,2]
[404297403,1770044850389,500.0,0.00011207,2]
[404297404,1770044850721,151.0,0.00011207,2]
[404297405,1770044851134,500.0,0.00011207,2]
[404297406,1770044851332,151.0,0.00011207,2]
[404297407,1770044851737,500.0,0.00011207,2]
[404297408,1770044851971,151.0,0.00011207,2]
[404297409,1770044852370,500.0,0.00011207,2]
[404297410,1770044852575,65.93368667,0.00011207,2]
[404297411,1770044852598,85.06631333,0.00011207,2]
[404297412,1770044852995,500.0,0.00011207,2]
[404297413,1770044853772,151.0,0.00011207,2]
[404297414,1770044853814,500.0,0.00011207,2]
[404297415,1770044854088,151.0,0.00011207,2]
[404297416,1770044854412,151.0,0.00011207,2]
[404297417,1770044854670,151.0,0.00011207,2]
[404297418,1770044855049,151.0,0.00011207,2]
[404297419,1770044855679,151.0,0.00011207,2]
[404297420,1770044856850,151.0,0.00011207,2]
[404297421,1770044857996,151.0,0.00011207,2]
[404297422,1770044858633,151.0,0.00011207,2]
[404297423,1770044859299,151.0,0.00011207,2]
[404297424,1770044860017,151.0,0.00011207,2]
[404297425,1770044860556,151.0,0.00011207,2]
[404297426,1770044861170,151.0,0.00011207,2]
[404297427,1770044869848,1387.6264,0.00011107,2]
[404297428,1770044877324,2955.89619883,0.00011132,2]
[404297429,1770044882576,300.0,0.00011206,2]
[404297432,1770044899253,568.24211709,0.00011132,2]
[404297433,1770044900292,568.24211709,0.00011132,2]
[404297434,1770044910297,-1192.84751436,0.00011207,2]
[404297435,1770044910311,-10000.01,0.00011207,2]
[404297436,1770044910325,-10000.01,0.00011207,2]
[404297437,1770044914097,-10000.01,0.00011207,2]
[404297438,1770044914226,-10000.01,0.00011207,2]
[404297439,1770044914350,-10000.01,0.00011207,2]
[404297440,1770044914480,-10000.01,0.00011207,2]
[404297441,1770044914607,-10000.01,0.00011207,2]
[404297442,1770044914743,-10000.01,0.00011207,2]
[404297443,1770044914875,-10000.01,0.00011207,2]
[404297444,1770044915004,-10000.01,0.00011207,2]
[404297445,1770044942657,300.0,0.00011206,2]
[404297446,1770044943228,150.0,0.00011206,2]
[404297473,1770044950546,500.0,0.0001118,2]
[404297474,1770044951086,150.0,0.0001118,2]
[404297475,1770044955132,1443.2,0.00010833,2]
[404297476,1770044956615,1000.0,0.00010856,2]
[404297477,1770044963114,520.9106607,0.00011206,2]
[404297478,1770044965502,5935.8993393,0.00011119,2]
[404297479,1770044965526,921.1194647,0.00011119,2]
[404297490,1770044997664,1970.5974659,0.00011119,2]
[404297491,1770045001943,300.0,0.00011206,2]
[404297492,1770045002418,1200.0,0.00011206,2]
[404297493,1770045007268,5608.2930694,0.00011119,2]
[404297494,1770045007293,10000.01,0.00011119,2]
[404297495,1770045007317,6610.00992963,0.00011119,2]
[404297496,1770045013412,165.21031004,0.00011197,2]
[404297497,1770045025217,2500.0,0.00011107,2]
[404297498,1770045027038,724.78976033,0.00010906,2]
[404297499,1770045027061,988.73023967,0.00010906,2]
[404297512,1770045031942,-1299.87042273,0.00011207,2]
[404297513,1770045031953,-5757.38547948,0.00011207,2]
[404297514,1770045031964,-1093.02365196,0.00011207,2]
[404297515,1770045031975,-2022.84722816,0.00011207,2]
[404297516,1770045031985,-970.02307038,0.00011207,2]
[404297517,1770045031996,-11850.19820899,0.00011207,2]
[404297518,1770045032007,-648.54655636,0.00011207,2]
[404297519,1770045032018,-507.51949708,0.00011207,2]
[404297520,1770045032033,-5775.7447491,0.00011207,2]
[404297521,1770045032044,-239079.86861894,0.00011207,2]
[404297522,1770045032055,-20200.72982591,0.00011207,2]
[404297523,1770045032066,-1009.96646785,0.00011207,2]
[404297537,1770045037964,-1837.56,0.00011207,2]
[404297538,1770045037977,-1616.70345335,0.00011207,2]
[404297539,1770045037988,-1722.4,0.00011207,2]
[404297540,1770045038107,-19902.5238696,0.00011207,2]
[404297551,1770045040005,-24104.6103854,0.00011207,2]
[404297552,1770045040017,-1494.65634048,0.00011207,2]
[404297553,1770045040029,-539.63574858,0.00011207,2]
[404297554,1770045040063,-27099.08598666,0.00011207,2]
[404297555,1770045040074,-313.48377425,0.00011207,2]
[404297556,1770045040086,-313.80824392,0.00011207,2]
[404297557,1770045040104,-4050.0,0.00011207,2]
[404297558,1770045040327,-1.7e-07,0.00011207,2]
[404297559,1770045040396,-437.7024,0.00011207,2]
[404297560,1770045040408,-2882554.9392677,0.00011207,2]
[404297561,1770045040418,-250.0,0.00011219,2]
[404297562,1770045040428,-500.0,0.00011235,2]
[404297563,1770045040442,-591.22636008,0.00011235,2]
[404297564,1770045040454,-177.0,0.0001129,2]
[404297566,1770045040467,-1000.0,0.00011305,2]
[404297568,1770045040477,-500.0,0.00011307,2]
[404297569,1770045040487,-347.23037837,0.00011307,2]
[404297571,1770045040496,-537.95431728,0.00011307,2]
[404297573,1770045040506,-288.1469,0.00011307,2]
[404297575,1770045040516,-151.5908,0.000114,2]
[404297576,1770045040525,-157.732,0.000114,2]
[404297577,1770045040537,-3009.426,0.000114,2]
[404297578,1770045040547,-1470.33,0.00011401,2]
[404297579,1770045040557,-4046.32,0.00011401,2]
[404297580,1770045040566,-999.99,0.00011401,2]
[404297582,1770045040576,-9999.99,0.00011401,2]
[404297583,1770045040586,-37811.15,0.00011401,2]
[404297584,1770045040596,-2979.54,0.00011401,2]
[404297585,1770045040606,-9999.99,0.00011401,2]
[404297586,1770045040615,-299.99,0.00011401,2]
[404297587,1770045040625,-24463.4,0.00011401,2]
[404297588,1770045040635,-150.99,0.00011401,2]
[404297589,1770045040644,-150.99,0.00011401,2]
[404297590,1770045040654,-2886.52,0.00011401,2]
[404297591,1770045040663,-433.69,0.00011401,2]
[404297592,1770045040673,-1317.44,0.00011401,2]
[404297593,1770045040683,-9999.99,0.00011406,2]
[404297594,1770045040693,-4999.99,0.00011406,2]
[404297595,1770045040702,-499.99,0.00011406,2]
[404297596,1770045040712,-1000.0,0.00011407,2]
[404297597,1770045040721,-165244.7073,0.00011407,2]
[404297598,1770045040731,-500.0,0.00011755,2]
[404297599,1770045040741,-202.25964161,0.00011755,2]
[404297600,1770045040751,-201.0,0.00011768,2]
[404297601,1770045040761,-1588.0,0.00011769,2]
[404297602,1770045040771,-166.67,0.00011772,2]
[404297603,1770045040780,-653.0,0.00011783,2]
[404297604,1770045040793,-209.57,0.00011791,2]
[404297605,1770045040802,-1849.28908955,0.00011806,2]
[404297606,1770045040812,-1686.0,0.00011806,2]
[404297607,1770045040821,-209.57,0.00011822,2]
[404297608,1770045040831,-984.0,0.0001183,2]
[404297609,1770045040840,-209.57,0.00011853,2]
[404297610,1770045040850,-312.0,0.00011853,2]
[404297611,1770045040859,-22218.31299895,0.00011872,2]
[404297612,1770045040868,-1808.0,0.00011877,2]
[404297613,1770045040877,-209.57,0.00011884,2]
[404297614,1770045040887,-388.17458479,0.00011915,2]
[404297615,1770045040896,-209.57,0.00011915,2]
[404297616,1770045040905,-209.57,0.00011946,2]
[404297617,1770045040914,-209.57,0.00011977,2]
[404297618,1770045040924,-209.57,0.00012008,2]
[404297619,1770045040933,-209.57,0.00012039,2]
[404297620,1770045040943,-52351.12,0.00012055,2]
[404297621,1770045040952,-209.57,0.0001207,2]
[404297622,1770045040961,-209.57,0.00012101,2]
[404297623,1770045040971,-209.57,0.00012132,2]
[404297624,1770045040979,-209.57,0.00012163,2]
[404297625,1770045040990,-209.57,0.00012194,2]
[404297626,1770045041003,-1000.0,0.00012213,2]
[404297627,1770045041012,-209.57,0.00012225,2]
[404297628,1770045041021,-500.0,0.00012255,2]
[404297629,1770045041031,-209.57,0.00012256,2]
[404297630,1770045041042,-255.0,0.00012259,2]
[404297631,1770045041051,-209.57,0.00012287,2]
[404297632,1770045041060,-500.0,0.00012303,2]
[404297633,1770045041070,-420.0,0.00012312,2]
[404297634,1770045041079,-209.57,0.00012318,2]
[404297635,1770045041089,-1680.0,0.00012327,2]
[404297636,1770045041098,-500.0,0.00012328,2]
[404297637,1770045041107,-300.0,0.00012328,2]